[Event "Caplin Hastings Masters 2023-24"]
[Site "Hastings"]
[Date "2024.01.01"]
[Round "5.38"]
[White "Fryer, David W"]
[Black "Nainika, Gupta"]
[Result "1/2-1/2"]
[ECO "B07"]
[WhiteElo "1914"]
[BlackElo "1543"]
[Annotator "RC"]
[PlyCount "101"]
[EventDate "2023.12.18"]
[EventType "swiss"]
[EventCountry "ENG"]
[SourceTitle "playchess.com"]
[Source "ChessBase"]
[SourceQuality "1"]
[TimeControl "40/6000+30:3000+30"]

1. e4 {[%emt 0:00:02]} d6 {[%emt 0:00:27]} 2. d4 {[%emt 0:00:13]} Nf6 {[%emt 0:00:28]} 3. Nc3 {[%emt 0:00:11]} g6 {[%emt 0:00:19]} 4. Be3 {[%emt 0:00:27]} Bg7 {[%emt 0:01:47]} 5. Qd2 {[%emt 0:00:23]} a6 {[%emt 0:01:18]} 6. f3 {[%emt 0:01:03]} b5 {[%emt 0:02:27]} 7. O-O-O {[%emt 0:01:45]} b4 {[%emt 0:04:43]} 8. Nce2 {[%emt 0:00:52]} a5 {[%emt 0:01:15]} 9. Kb1 {[%emt 0:02:24]} Na6 {[%emt 0:04:59]} 10. Nc1 {[%emt 0:02:37]} c6 {[%emt 0:09:59]} 11. Bh6 {[%emt 0:01:28]} Bxh6 {[%emt 0:00:52]} 12. Qxh6 {[%emt 0:00:11]} a4 {[%emt 0:04:07]} 13. Bxa6 {[%emt 0:04:29]} Rxa6 {[%emt 0:03:40]} 14. Nge2 {[%emt 0:00:58]} Qa5 {[%emt 0:08:16]} 15. g4 {[%emt 0:03:43]} Be6 {[%emt 0:04:01]} 16. h4 {[%emt 0:15:25]} Nd7 {[%emt 0:03:57]} 17. d5 {[%emt 0:04:13]} cxd5 {[%emt 0:00:42]} 18. Nd4 {[%emt 0:00:51]} Nc5 {[%emt 0:02:17]} 19. Nxe6 {[%emt 0:00:40]} Nxe6 {[%emt 0:00:42]} 20. exd5 {[%emt 0:06:57]} Nc7 {[%emt 0:01:02]} 21. Qd2 {[%emt 0:01:02]} a3 {[%emt 0:04:08]} 22. b3 {[%emt 0:11:07]} Qc5 {[%emt 0:02:14]} 23. Rhe1 {[%emt 0:04:31]} Nb5 {[%emt 0:03:09]} 24. Ne2 {[%emt 0:06:27]} Kd7 {[%emt 0:02:17]} 25. Rc1 {[%emt 0:02:11]} Rc8 {[%emt 0:00:55]} 26. Nf4 {[%emt 0:04:39]} Qc3 {[%emt 0:05:24]} 27. Qxc3 {[%emt 0:00:59]} Nxc3+ {[%emt 0:00:12]} 28. Ka1 {[%emt 0:00:18]} Ra5 {[%emt 0:00:45]} 29. Nd3 {[%emt 0:01:41]} Nxd5 {[%emt 0:01:30]} 30. Re4 {[%emt 0:00:29]} Rb5 {[%emt 0:00:35]} 31. c4 {[%emt 0:04:22]} bxc3 {[%emt 0:01:09]} 32. Ra4 {[%emt 0:00:16]} Ne3 {[%emt 0:01:41]} 33. Rxa3 {[%emt 0:00:49]} Rd5 {[%emt 0:00:40]} 34. Ra7+ {[%emt 0:00:38]} Kd8 {[%emt 0:00:55]} 35. Nb4 {[%emt 0:01:17]} Rd4 {[%emt 0:01:44]} 36. a3 {[%emt 0:02:47]} Rd2 {[%emt 0:01:21]} 37. Ra6 {[%emt 0:02:25]} Nd5 {[%emt 0:06:42]} 38. Nxd5 {[%emt 0:10:40]} Rxd5 {[%emt 0:00:11]} 39. b4 {[%emt 0:00:18]} Rd3 {[%emt 0:01:57]} 40. b5 {[%emt 0:00:50]} Rb8 {[%emt 0:02:52]} 41. a4 {[%emt 0:51:27]} Kc7 {[%emt 0:54:06]} 42. Rc6+ {[%emt 0:01:23]} Kb7 {[%emt 0:01:03]} 43. R1xc3 {[%emt 0:02:31]} Rxc3 {[%emt 0:03:31]} 44. Rxc3 {[%emt 0:00:10]} Ra8 {[%emt 0:02:14]} 45. Rc4 {[%emt 0:01:10]} e5 {[%emt 0:01:45]} 46. g5 {[%emt 0:01:18]} d5 {[%emt 0:00:37]} 47. Rb4 {[%emt 0:00:20]} Kb6 {[%emt 0:00:27]} 48. Kb2 {[%emt 0:00:18]} Rc8 {[%emt 0:00:51]} 49. Kb3 {[%emt 0:00:00]} Rc1 {[%emt 0:00:00]} 50. Kb2 {[%emt 0:00:00]} Rc8 {[%emt 0:00:00]} 51. Kb3 {[%emt 0:00:00]} 1/2-1/2

[Event "Caplin Hastings Masters 2023-24"]
[Site "Hastings"]
[Date "2024.01.01"]
[Round "5.40"]
[White "Howell, Oliver W"]
[Black "Walker, Martin G"]
[Result "1/2-1/2"]
[ECO "D77"]
[WhiteElo "1782"]
[BlackElo "2090"]
[Annotator "RC"]
[PlyCount "85"]
[EventDate "2023.12.18"]
[EventType "swiss"]
[EventCountry "ENG"]
[SourceTitle "playchess.com"]
[Source "ChessBase"]
[SourceQuality "1"]
[TimeControl "40/6000+30:3000+30"]

1. Nf3 {[%emt 0:00:03]} Nf6 {[%emt 0:00:04]} 2. c4 {[%emt 0:00:11]} g6 {[%emt 0:00:14]} 3. g3 {[%emt 0:00:08]} Bg7 {[%emt 0:00:11]} 4. Bg2 {[%emt 0:00:08]} O-O {[%emt 0:00:07]} 5. O-O {[%emt 0:00:06]} d5 {[%emt 0:00:03]} 6. d4 {[%emt 0:00:32]} dxc4 {[%emt 0:00:06]} 7. Na3 {[%emt 0:00:31]} Nc6 {[%emt 0:01:07]} 8. Nxc4 {[%emt 0:06:45]} Bf5 {[%emt 0:00:04]} 9. a3 {[%emt 0:07:25]} Qc8 {[%emt 0:08:28]} 10. b4 {[%emt 0:16:30]} a6 {[%emt 0:05:51]} 11. Bb2 {[%emt 0:06:33]} Bh3 {[%emt 0:00:25]} 12. Qb3 {[%emt 0:01:35]} Bxg2 {[%emt 0:06:46]} 13. Kxg2 {[%emt 0:00:08]} Qe6 {[%emt 0:00:08]} 14. Rac1 {[%emt 0:07:40]} Qd5 {[%emt 0:15:48]} 15. Ncd2 {[%emt 0:06:11]} e6 {[%emt 0:12:44]} 16. Rc5 {[%emt 0:12:04]} Qxb3 {[%emt 0:06:02]} 17. Nxb3 {[%emt 0:00:07]} Rfd8 {[%emt 0:00:04]} 18. Ne5 {[%emt 0:13:39]} Nxe5 {[%emt 0:00:06]} 19. dxe5 {[%emt 0:00:25]} Ne8 {[%emt 0:00:06]} 20. Rcc1 {[%emt 0:13:27]} Bf8 {[%emt 0:04:22]} 21. Rfd1 {[%emt 0:01:55]} b6 {[%emt 0:14:47]} 22. Nd4 {[%emt 0:06:30]} c5 {[%emt 0:00:46]} 23. bxc5 {[%emt 0:01:33]} bxc5 {[%emt 0:04:33]} 24. Nc6 {[%emt 0:02:14]} Rdc8 {[%emt 0:02:12]} 25. Na5 {[%emt 0:00:27]} Rab8 {[%emt 0:00:21]} 26. Nc4 {[%emt 0:00:53]} Rd8 {[%emt 0:10:44]} 27. Rd3 {[%emt 0:02:24]} Rxd3 {[%emt 0:09:32]} 28. exd3 {[%emt 0:00:02]} Be7 {[%emt 0:00:10]} 29. d4 {[%emt 0:00:43]} cxd4 {[%emt 0:03:42]} 30. Bxd4 {[%emt 0:00:12]} Rc8 {[%emt 0:00:04]} 31. Be3 {[%emt 0:01:13]} Rb8 {[%emt 0:00:54]} 32. Rd1 {[%emt 0:01:00]} Rc8 {[%emt 0:00:38]} 33. Rc1 {[%emt 0:00:55]} Rc6 {[%emt 0:00:36]} 34. Na5 {[%emt 0:01:08]} Rxc1 {[%emt 0:00:16]} 35. Bxc1 {[%emt 0:00:02]} Nc7 {[%emt 0:00:07]} 36. Nc6 {[%emt 0:00:29]} Bc5 {[%emt 0:00:09]} 37. a4 {[%emt 0:00:48]} Kf8 {[%emt 0:00:04]} 38. Kf3 {[%emt 0:01:04]} Ke8 {[%emt 0:02:19]} 39. Be3 {[%emt 0:00:57]} Bxe3 {[%emt 0:00:31]} 40. Kxe3 {[%emt 0:00:40]} Kd7 {[%emt 0:00:07]} 41. Nb4 {[%emt 0:10:20]} a5 {[%emt 0:08:07]} 42. Nd3 {[%emt 0:02:23]} Kc6 {[%emt 0:10:28]} 43. Ke4 {[%emt 0:01:54]} 1/2-1/2

[Event "Caplin Hastings Masters 2023-24"]
[Site "Hastings"]
[Date "2024.01.01"]
[Round "5.41"]
[White "Wilson, Matthew R"]
[Black "ONUOHA, Obioma"]
[Result "0-1"]
[ECO "A10"]
[WhiteElo "1771"]
[BlackElo "1995"]
[Annotator "NA RC"]
[PlyCount "56"]
[EventDate "2023.12.18"]
[EventType "swiss"]
[EventCountry "ENG"]
[SourceTitle "playchess.com"]
[Source "ChessBase"]
[SourceQuality "1"]
[TimeControl "40/6000+30:3000+30"]

1. b3 {[%emt 0:00:03]} d5 {[%emt 0:02:18]} 2. Bb2 {[%emt 0:00:06]} e6 {[%emt 0:00:23]} 3. e3 {[%emt 0:00:21]} f5 {[%emt 0:00:41]} 4. Nf3 {[%emt 0:01:08]} Nf6 {[%emt 0:00:09]} 5. Be2 {[%emt 0:01:15]} Bd6 {[%emt 0:00:12]} 6. O-O {[%emt 0:02:12]} O-O {[%emt 0:00:14]} 7. c4 {[%emt 0:01:00]} c6 {[%emt 0:00:13]} 8. Ne5 {[%emt 0:00:24]} Nbd7 {[%emt 0:00:55]} 9. d4 {[%emt 0:04:45]} Qc7 {[%emt 0:01:57]} 10. f4 {[%emt 0:00:18]} Ne4 {[%emt 0:00:25]} 11. Nd2 {[%emt 0:03:01]} Ndf6 {[%emt 0:00:41]} 12. Ndf3 {[%emt 0:02:23]} Bd7 {[%emt 0:00:52]} 13. Nxd7 {[%emt 0:05:17]} Nxd7 {[%emt 0:01:04]} 14. Ne5 {[%emt 0:02:49]} Rf6 {[%emt 0:01:06]} 15. c5 {[%emt 0:06:46]} Be7 {[%emt 0:00:33]} 16. b4 {[%emt 0:09:31]} Rh6 {[%emt 0:03:55]} 17. b5 {[%emt 0:04:56]} Nxe5 {[%emt 0:00:57]} 18. fxe5 {[%emt 0:00:57]} Bg5 {[%emt 0:05:32]} 19. Rf3 {[%emt 0:04:01]} Rf8 {[%emt 0:02:22]} 20. bxc6 {[%emt 0:07:53]} bxc6 {[%emt 0:00:49]} 21. Qd3 {[%emt 0:00:30]} Rb8 {[%emt 0:10:03]} 22. Bc3 {[%emt 0:13:03]} Bh4 {[%emt 0:02:38]} 23. Rff1 {[%emt 0:01:30]} Qe7 {[%emt 0:07:34]} 24. Rab1 {[%emt 0:01:42]} Rxb1 {[%emt 0:03:04]} 25. Rxb1 {[%emt 0:00:02]} Bf2+ {[%emt 0:00:13]} 26. Kf1 {[%emt 0:00:07]} Rxh2 {[%emt 0:01:48]} 27. Bd1 {[%emt 0:01:59]} Rh1+ {[%emt 0:01:24]} 28. Ke2 {[%emt 0:00:08]} Qh4 {[%emt 0:00:49]} 0-1

[Event "Caplin Hastings Masters 2023-24"]
[Site "Hastings"]
[Date "2024.01.01"]
[Round "5.42"]
[White "Ortiz Sanchez, Luis"]
[Black "Metcalfe, Charlie P"]
[Result "1-0"]
[ECO "D02"]
[WhiteElo "1863"]
[BlackElo "1760"]
[Annotator "NA RC COMBH"]
[PlyCount "82"]
[EventDate "2023.12.18"]
[EventType "swiss"]
[EventCountry "ENG"]
[SourceTitle "playchess.com"]
[Source "ChessBase"]
[SourceQuality "1"]
[TimeControl "40/6000+30:3000+30"]

1. d4 {[%emt 0:02:59]} d5 {[%emt 0:00:06]} 2. Nf3 {[%emt 0:00:37]} Nf6 {[%emt 0:00:01]} 3. c3 {[%emt 0:00:22]} c5 {[%emt 0:00:04]} 4. dxc5 {[%emt 0:00:20]} e6 {[%emt 0:00:05]} 5. b4 {[%emt 0:01:39]} a5 {[%emt 0:03:00]} 6. e3 {[%emt 0:01:06]} axb4 {[%emt 0:01:42]} 7. cxb4 {[%emt 0:00:36]} b6 {[%emt 0:01:29]} 8. Bb5+ {[%emt 0:02:56]} Bd7 {[%emt 0:01:08]} 9. Bxd7+ {[%emt 0:00:12]} Qxd7 {[%emt 0:02:28]} 10. a4 {[%emt 0:00:30]} bxc5 {[%emt 0:00:41]} 11. b5 {[%emt 0:00:11]} Bd6 {[%emt 0:01:12]} 12. O-O {[%emt 0:01:10]} O-O {[%emt 0:05:12]} 13. Nbd2 {[%emt 0:03:20]} Qc7 {[%emt 0:06:43]} 14. Qe2 {[%emt 0:01:36]} Nbd7 {[%emt 0:07:43]} 15. Bb2 {[%emt 0:05:48]} Ng4 {[%emt 0:11:16]} 16. h3 {[%emt 0:03:47]} Nge5 {[%emt 0:01:32]} 17. Nxe5 {[%emt 0:01:04]} Nxe5 {[%emt 0:00:57]} 18. f4 {[%emt 0:00:27]} Nd7 {[%emt 0:08:59]} 19. Qd3 {[%emt 0:04:06]} Qd8 {[%emt 0:10:51]} 20. Kh1 {[%emt 0:01:37]} f5 {[%emt 0:07:17]} 21. Nf3 {[%emt 0:03:50]} c4 {[%emt 0:06:30]} 22. Qd4 {[%emt 0:04:34]} Qe7 {[%emt 0:00:34]} 23. Ng5 {[%emt 0:00:26]} Nc5 {[%emt 0:01:47]} 24. Qd1 {[%emt 0:10:44]} h6 {[%emt 0:04:54]} 25. Nf3 {[%emt 0:00:08]} Ne4 {[%emt 0:00:09]} 26. Kh2 {[%emt 0:02:14]} c3 {[%emt 0:05:21]} 27. Bc1 {[%emt 0:01:03]} Rfc8 {[%emt 0:01:40]} 28. Nd4 {[%emt 0:02:12]} Rc4 {[%emt 0:01:23]} 29. Nxf5 {[%emt 0:00:41]} Qf6 {[%emt 0:04:09]} 30. Nxd6 {[%emt 0:06:59]} Nxd6 {[%emt 0:01:11]} 31. Qb3 {[%emt 0:00:48]} Ne4 {[%emt 0:01:34]} 32. b6 {[%emt 0:02:26]} Nc5 {[%emt 0:02:41]} 33. Qb5 {[%emt 0:00:29]} Nb7 {[%emt 0:02:19]} 34. a5 {[%emt 0:01:05]} Rc5 {[%emt 0:00:30]} 35. Qd7 {[%emt 0:03:18]} Nxa5 {[%emt 0:01:44]} 36. Ba3 {[%emt 0:04:36]} Rc6 {[%emt 0:02:01]} 37. Be7 {[%emt 0:00:45]} Qf7 {[%emt 0:02:12]} 38. Rxa5 {[%emt 0:05:36]} Rxa5 {[%emt 0:00:02]} 39. Qxc6 {[%emt 0:01:51]} Qxe7 {[%emt 0:00:31]} 40. b7 {[%emt 0:01:44]} Qf8 {[%emt 0:00:34]} 41. Qb6 {[%emt 0:50:55]} Ra8 {[%emt 0:53:39]} 1-0

[Event "Caplin Hastings Masters 2023-24"]
[Site "Hastings"]
[Date "2024.01.01"]
[Round "5.43"]
[White "Boggarapu, Kritan"]
[Black "Han, Qixuan"]
[Result "1-0"]
[ECO "B72"]
[WhiteElo "1857"]
[BlackElo "1603"]
[Annotator "NA RC COMBH"]
[PlyCount "117"]
[EventDate "2023.12.18"]
[EventType "swiss"]
[EventCountry "ENG"]
[SourceTitle "playchess.com"]
[Source "ChessBase"]
[SourceQuality "1"]
[TimeControl "40/6000+30:3000+30"]

1. e4 {[%emt 0:00:02]} c5 {[%emt 0:00:02]} 2. Nf3 {[%emt 0:00:04]} d6 {[%emt 0:00:05]} 3. d4 {[%emt 0:00:04]} cxd4 {[%emt 0:00:04]} 4. Nxd4 {[%emt 0:00:05]} Nf6 {[%emt 0:00:06]} 5. Nc3 {[%emt 0:00:07]} g6 {[%emt 0:00:05]} 6. Be3 {[%emt 0:00:07]} Nc6 {[%emt 0:00:06]} 7. f3 {[%emt 0:00:07]} h5 {[%emt 0:00:07]} 8. Qd2 {[%emt 0:00:34]} Nxd4 {[%emt 0:00:08]} 9. Bxd4 {[%emt 0:00:06]} Bh6 {[%emt 0:00:06]} 10. Be3 {[%emt 0:00:50]} Bxe3 {[%emt 0:00:07]} 11. Qxe3 {[%emt 0:00:05]} Be6 {[%emt 0:00:05]} 12. O-O-O {[%emt 0:02:40]} Qa5 {[%emt 0:00:17]} 13. Kb1 {[%emt 0:01:19]} Rc8 {[%emt 0:00:24]} 14. a3 {[%emt 0:02:28]} a6 {[%emt 0:00:51]} 15. Qd4 {[%emt 0:12:06]} O-O {[%emt 0:04:28]} 16. Nd5 {[%emt 0:22:05]} Nxd5 {[%emt 0:03:50]} 17. exd5 {[%emt 0:00:10]} Bf5 {[%emt 0:00:27]} 18. Bd3 {[%emt 0:00:11]} Bxd3 {[%emt 0:00:33]} 19. Rxd3 {[%emt 0:00:05]} Qc5 {[%emt 0:03:31]} 20. Qxc5 {[%emt 0:02:00]} Rxc5 {[%emt 0:03:20]} 21. Re1 {[%emt 0:00:47]} Rfc8 {[%emt 0:02:11]} 22. c3 {[%emt 0:00:07]} Kf8 {[%emt 0:01:22]} 23. Re4 {[%emt 0:01:04]} Rc4 {[%emt 0:01:16]} 24. Rdd4 {[%emt 0:01:04]} Rxd4 {[%emt 0:00:30]} 25. Rxd4 {[%emt 0:00:05]} Rd8 {[%emt 0:01:09]} 26. Rc4 {[%emt 0:02:04]} Rd7 {[%emt 0:00:39]} 27. Rc8+ {[%emt 0:02:49]} Kg7 {[%emt 0:00:02]} 28. Kc2 {[%emt 0:00:06]} Kf6 {[%emt 0:01:44]} 29. Kd3 {[%emt 0:00:05]} Ke5 {[%emt 0:00:15]} 30. c4 {[%emt 0:00:13]} e6 {[%emt 0:00:44]} 31. dxe6 {[%emt 0:01:01]} fxe6 {[%emt 0:00:28]} 32. Rf8 {[%emt 0:00:22]} d5 {[%emt 0:02:20]} 33. f4+ {[%emt 0:00:18]} Kd6 {[%emt 0:00:04]} 34. Rg8 {[%emt 0:00:18]} Rf7 {[%emt 0:00:28]} 35. cxd5 {[%emt 0:01:23]} exd5 {[%emt 0:00:31]} 36. Rxg6+ {[%emt 0:00:08]} Kc5 {[%emt 0:00:37]} 37. g3 {[%emt 0:00:05]} h4 {[%emt 0:01:14]} 38. Rg4 {[%emt 0:00:42]} hxg3 {[%emt 0:00:21]} 39. hxg3 {[%emt 0:00:04]} a5 {[%emt 0:00:57]} 40. Rg5 {[%emt 0:00:30]} a4 {[%emt 0:01:46]} 41. Re5 {[%emt 0:50:11]} Rg7 {[%emt 0:50:59]} 42. Re3 {[%emt 0:00:09]} Rg6 {[%emt 0:01:48]} 43. f5 {[%emt 0:00:14]} Rb6 {[%emt 0:01:12]} 44. Kc2 {[%emt 0:00:47]} Kd4 {[%emt 0:03:11]} 45. Rf3 {[%emt 0:05:44]} Rf6 {[%emt 0:02:16]} 46. Kd2 {[%emt 0:03:40]} Ke4 {[%emt 0:02:28]} 47. Rf4+ {[%emt 0:00:23]} Ke5 {[%emt 0:00:23]} 48. Kd3 {[%emt 0:00:20]} b6 {[%emt 0:11:53]} 49. Rf3 {[%emt 0:01:10]} d4 {[%emt 0:04:01]} 50. g4 {[%emt 0:00:34]} b5 {[%emt 0:01:32]} 51. g5 {[%emt 0:00:16]} Rf8 {[%emt 0:01:50]} 52. f6 {[%emt 0:00:29]} Ke6 {[%emt 0:01:24]} 53. g6 {[%emt 0:00:20]} b4 {[%emt 0:01:43]} 54. axb4 {[%emt 0:00:08]} a3 {[%emt 0:00:03]} 55. bxa3 {[%emt 0:00:07]} Ra8 {[%emt 0:00:33]} 56. Kxd4 {[%emt 0:00:11]} Rd8+ {[%emt 0:00:14]} 57. Ke4 {[%emt 0:00:07]} Rh8 {[%emt 0:00:28]} 58. f7 {[%emt 0:00:07]} Rh4+ {[%emt 0:00:06]} 59. Rf4 {[%emt 0:00:06]} 1-0

[Event "Caplin Hastings Masters 2023-24"]
[Site "Hastings"]
[Date "2024.01.01"]
[Round "5.44"]
[White "Byrn, Carsten"]
[Black "Seo, Juwon"]
[Result "0-1"]
[ECO "E12"]
[WhiteElo "1823"]
[BlackElo "1405"]
[Annotator "NA RC COMBH"]
[PlyCount "80"]
[EventDate "2023.12.18"]
[EventType "swiss"]
[EventCountry "ENG"]
[SourceTitle "playchess.com"]
[Source "ChessBase"]
[SourceQuality "1"]
[TimeControl "40/6000+30:3000+30"]

1. d4 {[%emt 0:00:03]} Nf6 {[%emt 0:00:11]} 2. c4 {[%emt 0:00:10]} e6 {[%emt 0:02:35]} 3. Nf3 {[%emt 0:00:03]} b6 {[%emt 0:03:08]} 4. a3 {[%emt 0:01:49]} Bb7 {[%emt 0:01:06]} 5. Nc3 {[%emt 0:00:19]} Be7 {[%emt 0:03:10]} 6. Qc2 {[%emt 0:00:26]} O-O {[%emt 0:00:44]} 7. e4 {[%emt 0:01:59]} c5 {[%emt 0:01:58]} 8. d5 {[%emt 0:02:29]} exd5 {[%emt 0:00:34]} 9. exd5 {[%emt 0:00:44]} d6 {[%emt 0:00:43]} 10. Bd3 {[%emt 0:00:31]} Re8 {[%emt 0:02:07]} 11. h4 {[%emt 0:06:12]} Bf8+ {[%emt 0:01:03]} 12. Be3 {[%emt 0:01:40]} Nbd7 {[%emt 0:07:46]} 13. O-O-O {[%emt 0:00:32]} Rc8 {[%emt 0:02:44]} 14. Rdg1 {[%emt 0:02:36]} g6 {[%emt 0:04:45]} 15. g4 {[%emt 0:00:53]} Bg7 {[%emt 0:01:17]} 16. h5 {[%emt 0:00:53]} Re7 {[%emt 0:04:19]} 17. g5 {[%emt 0:04:46]} Ne8 {[%emt 0:09:26]} 18. hxg6 {[%emt 0:00:55]} fxg6 {[%emt 0:00:23]} 19. Rxh7 {[%emt 0:07:19]} Kxh7 {[%emt 0:01:58]} 20. Bxg6+ {[%emt 0:00:34]} Kg8 {[%emt 0:00:29]} 21. Bh7+ {[%emt 0:00:48]} Kf8 {[%emt 0:01:45]} 22. Nh4 {[%emt 0:02:55]} Nc7 {[%emt 0:03:49]} 23. Ng6+ {[%emt 0:09:38]} Ke8 {[%emt 0:01:25]} 24. Ne4 {[%emt 0:04:58]} Ne5 {[%emt 0:03:46]} 25. Nxe7 {[%emt 0:05:24]} Qxe7 {[%emt 0:00:42]} 26. Nf6+ {[%emt 0:00:46]} Kd8 {[%emt 0:02:28]} 27. f4 {[%emt 0:01:30]} Nf3 {[%emt 0:02:00]} 28. Be4 {[%emt 0:03:47]} Nxg1 {[%emt 0:00:17]} 29. Bxg1 {[%emt 0:00:21]} Bxf6 {[%emt 0:00:37]} 30. gxf6 {[%emt 0:00:29]} Qxf6 {[%emt 0:00:11]} 31. Qh2 {[%emt 0:00:23]} Ne8 {[%emt 0:00:54]} 32. Bf2 {[%emt 0:00:18]} Kc7 {[%emt 0:00:48]} 33. Bh4 {[%emt 0:00:25]} Qd4 {[%emt 0:00:37]} 34. Qe2 {[%emt 0:00:39]} Nf6 {[%emt 0:01:19]} 35. Bxf6 {[%emt 0:01:25]} Qxf6 {[%emt 0:00:03]} 36. f5 {[%emt 0:00:31]} Kb8 {[%emt 0:00:11]} 37. Qh2 {[%emt 0:00:48]} Re8 {[%emt 0:00:14]} 38. Qf4 {[%emt 0:00:45]} Qd4 {[%emt 0:01:34]} 39. Qxd6+ {[%emt 0:00:04]} Ka8 {[%emt 0:00:03]} 40. Qd7 {[%emt 0:00:54]} Qxe4 {[%emt 0:00:12]} 0-1

[Event "Caplin Hastings Masters 2023-24"]
[Site "Hastings"]
[Date "2024.01.01"]
[Round "5.45"]
[White "Keely, Leo A"]
[Black "Binks, Michael"]
[Result "1/2-1/2"]
[ECO "B15"]
[WhiteElo "1908"]
[BlackElo "2035"]
[Annotator "NA RC"]
[PlyCount "39"]
[EventDate "2023.12.18"]
[EventType "swiss"]
[EventCountry "ENG"]
[SourceTitle "playchess.com"]
[Source "ChessBase"]
[SourceQuality "1"]
[TimeControl "40/6000+30:3000+30"]

1. e4 {[%emt 0:00:04]} c6 {[%emt 0:00:09]} 2. d4 {[%emt 0:00:11]} d5 {[%emt 0:00:04]} 3. Nd2 {[%emt 0:00:12]} dxe4 {[%emt 0:00:12]} 4. Nxe4 {[%emt 0:00:10]} Nf6 {[%emt 0:00:10]} 5. Nxf6+ {[%emt 0:00:18]} exf6 {[%emt 0:00:09]} 6. c3 {[%emt 0:01:13]} Bd6 {[%emt 0:00:33]} 7. Bd3 {[%emt 0:00:39]} Qc7 {[%emt 0:00:45]} 8. Qc2 {[%emt 0:05:46]} h6 {[%emt 0:03:55]} 9. Be3 {[%emt 0:03:00]} Be6 {[%emt 0:02:30]} 10. Nf3 {[%emt 0:04:40]} Nd7 {[%emt 0:01:13]} 11. a3 {[%emt 0:09:51]} g6 {[%emt 0:13:17]} 12. c4 {[%emt 0:05:06]} f5 {[%emt 0:11:21]} 13. O-O-O {[%emt 0:04:41]} O-O-O {[%emt 0:07:08]} 14. Rhe1 {[%emt 0:02:08]} Nf6 {[%emt 0:01:53]} 15. h3 {[%emt 0:01:36]} Bf4 {[%emt 0:04:02]} 16. Kb1 {[%emt 0:06:14]} Bxe3 {[%emt 0:00:53]} 17. Rxe3 {[%emt 0:02:01]} Kb8 {[%emt 0:06:34]} 18. Qc3 {[%emt 0:02:28]} Nh5 {[%emt 0:06:37]} 19. Bf1 {[%emt 0:10:15]} a6 {[%emt 0:05:22]} 20. Ne5 {[%emt 0:01:23]} 1/2-1/2

[Event "Caplin Hastings Masters 2023-24"]
[Site "Hastings"]
[Date "2024.01.01"]
[Round "5.47"]
[White "Prudent, Sylvio"]
[Black "Kim, Sumin"]
[Result "1-0"]
[ECO "A01"]
[WhiteElo "1639"]
[BlackElo "1358"]
[Annotator "NA RC COMBH"]
[PlyCount "75"]
[EventDate "2023.12.18"]
[EventType "swiss"]
[EventCountry "ENG"]
[SourceTitle "playchess.com"]
[Source "ChessBase"]
[SourceQuality "1"]
[TimeControl "40/6000+30:3000+30"]

1. b3 {[%emt 0:00:03]} e5 {[%emt 0:00:04]} 2. Bb2 {[%emt 0:00:06]} d6 {[%emt 0:00:06]} 3. e3 {[%emt 0:00:06]} Nf6 {[%emt 0:00:20]} 4. c4 {[%emt 0:00:32]} b6 {[%emt 0:00:24]} 5. Nc3 {[%emt 0:01:10]} Bb7 {[%emt 0:00:06]} 6. Nf3 {[%emt 0:00:53]} c5 {[%emt 0:00:57]} 7. d3 {[%emt 0:01:46]} Nc6 {[%emt 0:01:53]} 8. Be2 {[%emt 0:00:22]} Be7 {[%emt 0:00:04]} 9. O-O {[%emt 0:00:25]} O-O {[%emt 0:00:04]} 10. e4 {[%emt 0:00:01]} Re8 {[%emt 0:02:58]} 11. Nd5 {[%emt 0:00:34]} Bf8 {[%emt 0:01:12]} 12. Ne3 {[%emt 0:01:50]} a5 {[%emt 0:01:27]} 13. h3 {[%emt 0:09:29]} Qd7 {[%emt 0:00:53]} 14. a4 {[%emt 0:01:25]} Rad8 {[%emt 0:09:21]} 15. Bc1 {[%emt 0:02:25]} Qc7 {[%emt 0:01:56]} 16. g4 {[%emt 0:07:03]} Bc8 {[%emt 0:00:29]} 17. Kh2 {[%emt 0:03:22]} Ne7 {[%emt 0:03:34]} 18. Nh4 {[%emt 0:01:54]} Be6 {[%emt 0:02:56]} 19. Nd5 {[%emt 0:02:01]} Nfxd5 {[%emt 0:00:34]} 20. cxd5 {[%emt 0:00:23]} Bd7 {[%emt 0:00:11]} 21. f4 {[%emt 0:00:29]} Ng6 {[%emt 0:03:41]} 22. Nxg6 {[%emt 0:09:57]} fxg6 {[%emt 0:00:17]} 23. f5 {[%emt 0:00:27]} gxf5 {[%emt 0:00:35]} 24. gxf5 {[%emt 0:00:25]} Be7 {[%emt 0:00:15]} 25. Rg1 {[%emt 0:02:01]} Rf8 {[%emt 0:01:01]} 26. Qe1 {[%emt 0:03:26]} Bf6 {[%emt 0:01:21]} 27. Qg3 {[%emt 0:00:33]} Be8 {[%emt 0:00:22]} 28. h4 {[%emt 0:00:34]} b5 {[%emt 0:00:43]} 29. axb5 {[%emt 0:00:56]} Bxb5 {[%emt 0:00:29]} 30. h5 {[%emt 0:00:19]} Kf7 {[%emt 0:00:43]} 31. h6 {[%emt 0:01:34]} Rg8 {[%emt 0:01:18]} 32. Bh5+ {[%emt 0:21:29]} Kf8 {[%emt 0:02:46]} 33. hxg7+ {[%emt 0:01:23]} Bxg7 {[%emt 0:01:12]} 34. f6 {[%emt 0:00:58]} Bxd3 {[%emt 0:00:46]} 35. fxg7+ {[%emt 0:00:51]} Qxg7 {[%emt 0:00:20]} 36. Bh6 {[%emt 0:01:27]} Qxh6 {[%emt 0:00:02]} 37. Qxg8+ {[%emt 0:00:25]} Ke7 {[%emt 0:00:03]} 38. Qf7# {[%emt 0:00:14]} 1-0